fUST/lending_fUST_20250909
["ID","MTS","AMOUNT","RATE_DAILY","PERIOD"]
[384447776,1757421040718,-480.0,0.00013698,2]
[384447777,1757421040726,-480.0,0.00013698,2]
[384447778,1757421040736,-313.71688517,0.00013698,2]
[384447779,1757421040749,-166.28311483,0.00013698,2]
[384447780,1757421040758,-480.0,0.00013698,2]
[384447781,1757421040768,-419.7143686,0.00013698,2]
[384447782,1757421040777,-480.0,0.00013698,2]
[384447783,1757421040787,-480.0,0.00013698,2]
[384447799,1757421040946,-480.0,0.00013698,2]
[384447801,1757421040955,-480.0,0.00013698,2]
[384447803,1757421040965,-480.0,0.00013698,2]
[384447805,1757421040974,-288.32359427,0.00013698,2]
[384447807,1757421040983,-480.0,0.00013698,2]
[384447809,1757421040992,-480.0,0.00013698,2]
[384447811,1757421041001,-480.0,0.00013698,2]
[384447813,1757421041010,-485.80040873,0.00013698,2]
[384447815,1757421041020,-480.0,0.00013698,2]
[384447816,1757421041029,-198.55491557,0.00013698,2]
[384447817,1757421041038,-480.0,0.00013698,2]
[384447818,1757421041047,-507.6968546,0.00013698,2]
[384447819,1757421041056,-467.5302531,0.00013698,2]
[384447820,1757421041065,-480.0,0.00013698,2]
[384447821,1757421041074,-480.0,0.00013698,2]
[384447823,1757421041084,-480.0,0.00013698,2]
[384447824,1757421041093,-480.0,0.00013698,2]
[384447825,1757421041102,-289.39703927,0.00013698,2]
[384447826,1757421041111,-480.0,0.00013698,2]
[384447827,1757421041120,-483.31129139,0.00013698,2]
[384447828,1757421041129,-480.0,0.00013698,2]
[384447829,1757421041138,-480.0,0.00013698,2]
[384447830,1757421041148,-480.0,0.00013698,2]
[384447831,1757421041157,-480.0,0.00013698,2]
[384447832,1757421041166,-480.0,0.00013698,2]
[384447833,1757421041175,-480.0,0.00013698,2]
[384447834,1757421041187,-480.0,0.00013698,2]
[384447835,1757421041197,-480.0,0.00013698,2]
[384447836,1757421041206,-996.87,0.00013698,2]
[384447837,1757421041215,-480.0,0.00013698,2]
[384447838,1757421041225,-480.0,0.00013698,2]
[384447839,1757421041235,-487.19055727,0.00013698,2]
[384447840,1757421041244,-289.41986477,0.00013698,2]
[384447841,1757421041253,-480.0,0.00013698,2]
[384447842,1757421041262,-480.0,0.00013698,2]
[384447844,1757421041271,-480.0,0.00013698,2]
[384447846,1757421041281,-480.0,0.00013698,2]
[384447848,1757421041289,-480.0,0.00013698,2]
[384447850,1757421041298,-480.0,0.00013698,2]
[384447852,1757421041307,-480.0,0.00013698,2]
[384447854,1757421041317,-480.0,0.00013698,2]
[384447856,1757421041327,-480.0,0.00013698,2]
[384447858,1757421041336,-480.0,0.00013698,2]
[384447860,1757421041345,-480.0,0.00013698,2]
[384447862,1757421041354,-480.0,0.00013698,2]
[384447864,1757421041363,-480.0,0.00013698,2]
[384447866,1757421041372,-472.92792878,0.00013698,2]
[384447868,1757421041384,-171.9137872,0.00013698,2]
[384447870,1757421041393,-480.0,0.00013698,2]
[384447872,1757421041402,-480.0,0.00013698,2]
[384447874,1757421041411,-480.0,0.00013698,2]
[384447876,1757421041420,-480.0,0.00013698,2]
[384447878,1757421041429,-480.0,0.00013698,2]
[384447880,1757421041443,-480.0,0.00013698,2]
[384447882,1757421041452,-480.0,0.00013698,2]
[384447884,1757421041461,-729.55,0.00013698,2]
[384447886,1757421041471,-480.0,0.00013698,2]
[384447887,1757421041481,-480.0,0.00013698,2]
[384447889,1757421041491,-480.0,0.00013698,2]
[384447891,1757421041500,-757.89,0.00013698,2]
[384447894,1757421041509,-489.95616679,0.00013698,2]
[384447896,1757421041519,-480.0,0.00013698,2]
[384447898,1757421041528,-168.39498634,0.00013698,2]
[384447900,1757421041537,-480.0,0.00013698,2]
[384447902,1757421041547,-604.08,0.00013698,2]
[384447904,1757421041556,-480.0,0.00013698,2]
[384447906,1757421041566,-480.0,0.00013698,2]
[384447907,1757421041576,-307.82516922,0.00013698,2]
[384447918,1757421041669,206.67467203,0.00013253,2]
[384449799,1757421075826,1000.0,0.00018595,20]
[384449802,1757421437101,169.33814378,0.00013228,2]
[384449804,1757421937083,169.33814378,0.00013228,2]
[384449805,1757421962043,169.33814378,0.00013228,2]
[384449807,1757421986505,169.33814378,0.00013228,2]
[384449809,1757422010976,169.33814378,0.00013228,2]
[384449810,1757422036722,169.33814378,0.00013228,2]
[384449811,1757422060528,169.33814378,0.00013228,2]
[384449812,1757422084925,169.33814378,0.00013228,2]
[384449814,1757422109233,169.33814378,0.00013228,2]
[384449815,1757422113979,304.05561258,0.000145,9]
[384449816,1757422133512,169.33814378,0.00013228,2]
[384449817,1757422143201,-169.33814378,0.00013362,2]
[384449818,1757422150722,169.33814378,0.00013362,2]
[384449819,1757422176690,169.33814378,0.00013228,2]
[384449820,1757422200795,169.33814378,0.00013228,2]
[384449822,1757422224595,169.33814378,0.00013228,2]
[384449850,1757422232681,-169.33814378,0.00013362,2]
[384449852,1757422232691,-169.33814378,0.00013497,2]
[384449854,1757422232701,-1200.0,0.00013596,2]
[384449856,1757422232711,-1200.0,0.00013597,2]
[384449858,1757422232721,-300.0,0.00013597,2]
[384449860,1757422232729,-1705.21351914,0.00013598,2]
[384449862,1757422232741,-200.91605734,0.00013598,2]
[384449864,1757422232752,-182.57194266,0.00013598,2]
[384449866,1757422232763,-1762.78659549,0.00013598,2]
[384449868,1757422232772,-22303.91017662,0.00013598,2]
[384449871,1757422232783,-1945.35853811,0.00013667,2]
[384449873,1757422232793,-500.0,0.00013673,2]
[384449875,1757422232802,-2030.296672,0.0001369,2]
[384449876,1757422232811,-15585.19088452,0.00013696,2]
[384449879,1757422232822,-433.26733068,0.00013696,2]
[384450002,1757422238531,-22501.17789192,0.0001369,2]
[384450003,1757422238541,-9419.3624173,0.00013696,2]
[384450004,1757422238550,-500.0,0.00013697,2]
[384450005,1757422238559,-500.0,0.00013697,2]
[384450006,1757422238568,-259.88843321,0.00013697,2]
[384450007,1757422238577,-500.0,0.00013697,2]
[384450008,1757422238586,-500.0,0.00013697,2]
[384450009,1757422238595,-500.0,0.00013697,2]
[384450010,1757422238604,-500.0,0.00013697,2]
[384450011,1757422238614,-253.00795772,0.00013697,2]
[384450013,1757422238623,-500.0,0.00013697,2]
[384450015,1757422238632,-198.0133408,0.00013697,2]
[384450016,1757422238641,-500.0,0.00013697,2]
[384450017,1757422238650,-439.56336307,0.00013697,2]
[384450018,1757422238659,-500.0,0.00013697,2]
[384450019,1757422238668,-500.0,0.00013697,2]
[384450020,1757422238677,-500.0,0.00013697,2]
[384450021,1757422238686,-500.0,0.00013697,2]
[384450022,1757422238695,-500.0,0.00013697,2]
[384450023,1757422238705,-3361.10866912,0.00013698,2]
[384450024,1757422238720,-358.33781358,0.00013698,2]
[384450454,1757422243669,-327.0214455,0.00013698,2]
[384450456,1757422243683,-607.59921339,0.00013698,2]
[384450747,1757422246620,-1826.50829441,0.00013698,2]
[384450749,1757422246632,-480.0,0.00013698,2]
[384450751,1757422246642,-480.0,0.00013698,2]
[384450754,1757422246653,-462.41429711,0.00013698,2]
[384450756,1757422246664,-480.88189864,0.00013698,2]
[384450758,1757422246675,-480.0,0.00013698,2]
[384450760,1757422246686,-480.0,0.00013698,2]
[384450762,1757422246697,-480.0,0.00013698,2]
[384450765,1757422246711,-297.582419,0.00013698,2]
[384450767,1757422246721,-480.0,0.00013698,2]
[384450769,1757422246731,-480.0,0.00013698,2]
[384450771,1757422246742,-480.0,0.00013698,2]
[384450773,1757422246757,-480.0,0.00013698,2]
[384450775,1757422246767,-480.0,0.00013698,2]
[384450778,1757422246779,-480.0,0.00013698,2]
[384450780,1757422246792,-480.0,0.00013698,2]
[384450782,1757422246803,-480.0,0.00013698,2]
[384450784,1757422246814,-480.0,0.00013698,2]
[384450786,1757422246825,-480.0,0.00013698,2]
[384450789,1757422246835,-480.0,0.00013698,2]
[384450791,1757422246846,-480.0,0.00013698,2]
[384450793,1757422246857,-480.0,0.00013698,2]
[384450795,1757422246867,-480.0,0.00013698,2]
[384450797,1757422246878,-481.28101081,0.00013698,2]
[384450799,1757422246888,-482.13806269,0.00013698,2]
[384450802,1757422246899,-480.0,0.00013698,2]
[384450804,1757422246910,-480.0,0.00013698,2]
[384450806,1757422246920,-480.0,0.00013698,2]
[384450808,1757422246930,-632.79,0.00013698,2]
[384450810,1757422246941,-480.0,0.00013698,2]
[384450812,1757422246951,-348.89822537,0.00013698,2]
[384450814,1757422246962,-480.0,0.00013698,2]
[384450817,1757422246974,-480.0,0.00013698,2]
[384450819,1757422246985,-480.0,0.00013698,2]
[384450821,1757422246996,-480.0,0.00013698,2]
[384450823,1757422247008,-480.0,0.00013698,2]
[384450826,1757422247019,-480.0,0.00013698,2]
[384450828,1757422247030,-480.0,0.00013698,2]
[384450830,1757422247040,-480.0,0.00013698,2]
[384450832,1757422247051,-480.0,0.00013698,2]
[384450834,1757422247061,-487.26565924,0.00013698,2]
[384450837,1757422247072,-480.0,0.00013698,2]
[384450839,1757422247083,-480.0,0.00013698,2]
[384450841,1757422247094,-510.93,0.00013698,2]
[384450843,1757422247104,-480.0,0.00013698,2]
[384450845,1757422247115,-480.0,0.00013698,2]
[384450847,1757422247126,-480.0,0.00013698,2]
[384450849,1757422247136,-151.0,0.00013698,2]
[384450852,1757422247147,-157.585201,0.00013698,2]
[384450854,1757422247157,-480.0,0.00013698,2]
[384450856,1757422247168,-344.71872039,0.00013698,2]
[384450858,1757422247179,-553.62082227,0.00013698,2]
[384450860,1757422247189,-480.0,0.00013698,2]
[384450862,1757422247200,-480.0,0.00013698,2]
[384450865,1757422247210,-480.0,0.00013698,2]
[384450867,1757422247221,-480.0,0.00013698,2]
[384450869,1757422247231,-193.58100535,0.00013698,2]
[384450871,1757422247241,-157.0,0.00013698,2]
[384450873,1757422247253,-157.0,0.00013698,2]
[384450875,1757422247263,-157.0,0.00013698,2]
[384450878,1757422247274,-410.97829499,0.00013698,2]
[384450880,1757422247285,-191.23667509,0.00013698,2]
[384450882,1757422247295,-157.0,0.00013698,2]
[384450884,1757422247306,-157.0,0.00013698,2]
[384450886,1757422247316,-500.0,0.00013698,2]
[384450888,1757422247326,-500.0,0.00013698,2]
[384450891,1757422247337,-480.0,0.00013698,2]
[384450893,1757422247347,-326.05753537,0.00013698,2]
[384452154,1757422398521,8444.12431672,0.00013325,2]
[384452162,1757422433103,3604.38343471,0.00013291,2]
[384452163,1757422442148,3604.38343471,0.00013291,2]
[384452164,1757422653068,300.0,0.00013326,2]
[384452166,1757422860049,3494.55432674,0.00013302,2]
[384452167,1757422863968,302.0311356,0.00028792,60]
[384452168,1757422884558,250.0,0.00013315,2]
[384452169,1757422909748,250.0,0.00013315,2]
[384452171,1757422926677,250.0,0.00013315,2]
[384452172,1757422935540,250.0,0.00013315,2]
[384452173,1757422952074,250.0,0.00013315,2]
[384452174,1757422960879,250.0,0.00013315,2]
[384452175,1757422977674,250.0,0.00013315,2]
[384452176,1757422987080,250.0,0.00013315,2]
[384452178,1757423003209,250.0,0.00013315,2]
[384452179,1757423012474,250.0,0.00013315,2]
[384452180,1757423037470,2775.71241432,0.00013303,2]
[384452181,1757423061655,1965.33827911,0.00013303,2]
[384452183,1757423215741,250.0,0.00013297,2]
[384452184,1757423240830,250.0,0.00013297,2]
[384452186,1757423291597,250.0,0.00013137,2]
[384452187,1757423366539,523.95495963,0.00013228,2]
[384452228,1757423431896,-374.10780233,0.00013362,2]
[384452230,1757423431909,-344.73411009,0.00013362,2]
[384452232,1757423431919,-2457.03201581,0.000135,2]
[384452234,1757423431931,-318.68039851,0.000135,2]
[384452236,1757423431941,-1242.16530368,0.00013525,2]
[384452245,1757423432020,-1533.5471106,0.00013525,2]
[384452247,1757423432031,-1200.0,0.00013548,2]
[384452249,1757423432042,-2775.71241428,0.00013549,2]
[384452251,1757423432051,-300.0,0.00013573,2]
[384452253,1757423432061,-300.0,0.00013573,2]
[384452255,1757423432071,-300.0,0.00013573,2]
[384452257,1757423432081,-300.0,0.00013573,2]
[384452260,1757423432090,-300.0,0.00013573,2]
[384452262,1757423432100,-2775.71241428,0.00013574,2]
[384452264,1757423432109,-1200.0,0.00013583,2]
[384452266,1757423432119,-3792.90463247,0.00013584,2]
[384452268,1757423432128,-500.0,0.00013597,2]
[384452270,1757423432138,-500.0,0.00013597,2]
[384452272,1757423432148,-500.0,0.00013597,2]
[384452274,1757423432158,-500.0,0.00013597,2]
[384452276,1757423432168,-500.0,0.00013597,2]
[384452277,1757423432178,-500.0,0.00013597,2]
[384452278,1757423432187,-500.0,0.00013597,2]
[384452279,1757423432197,-500.0,0.00013597,2]
[384452281,1757423432206,-500.0,0.00013597,2]
[384452283,1757423432216,-500.0,0.00013597,2]
[384452285,1757423432230,-500.0,0.00013597,2]
[384452287,1757423432240,-500.0,0.00013597,2]
[384452289,1757423432249,-500.0,0.00013597,2]
[384452291,1757423432259,-203.14401694,0.00013597,2]
[384452294,1757423432270,-500.0,0.00013597,2]
[384452296,1757423432280,-500.0,0.00013597,2]
[384452298,1757423432291,-500.0,0.00013597,2]
[384452300,1757423432301,-500.0,0.00013597,2]
[384452302,1757423432311,-500.0,0.00013597,2]
[384452304,1757423432320,-500.0,0.00013597,2]
[384452306,1757423432330,-500.0,0.00013597,2]
[384452308,1757423432339,-500.0,0.00013597,2]
[384452310,1757423432349,-500.0,0.00013597,2]
[384452312,1757423432358,-500.0,0.00013597,2]
[384452314,1757423432368,-500.0,0.00013597,2]
[384452316,1757423432377,-500.0,0.00013597,2]
[384452318,1757423432387,-500.0,0.00013597,2]
[384452320,1757423432396,-500.0,0.00013597,2]
[384452322,1757423432407,-500.0,0.00013597,2]
[384452324,1757423432417,-500.0,0.00013597,2]
[384452326,1757423432426,-385.3035306,0.00013597,2]
[384452329,1757423432435,-190.25184639,0.00013597,2]
[384452331,1757423432444,-500.0,0.00013597,2]
[384452333,1757423432454,-500.0,0.00013597,2]
[384452335,1757423432464,-500.0,0.00013597,2]
[384452337,1757423432474,-500.0,0.00013597,2]
[384452339,1757423432483,-500.0,0.00013597,2]
[384452341,1757423432492,-500.0,0.00013597,2]
[384452343,1757423432502,-178.97870029,0.00013597,2]
[384452345,1757423432512,-500.0,0.00013597,2]
[384452347,1757423432522,-500.0,0.00013597,2]
[384452349,1757423432532,-500.0,0.00013597,2]
[384452351,1757423432541,-500.0,0.00013597,2]
[384452353,1757423432551,-500.0,0.00013597,2]
[384452355,1757423432560,-500.0,0.00013597,2]
[384452357,1757423432570,-500.0,0.00013597,2]
[384452359,1757423432579,-500.0,0.00013597,2]
[384452362,1757423432589,-389.38499939,0.00013597,2]
[384452364,1757423432599,-500.0,0.00013597,2]
[384452366,1757423432608,-500.0,0.00013597,2]
[384452368,1757423432618,-500.0,0.00013597,2]
[384452370,1757423432628,-500.0,0.00013597,2]
[384452372,1757423432637,-500.0,0.00013597,2]
[384452374,1757423432646,-500.0,0.00013597,2]
[384452376,1757423432656,-500.0,0.00013597,2]
[384452378,1757423432665,-500.0,0.00013597,2]
[384452379,1757423432675,-500.0,0.00013597,2]
[384452381,1757423432684,-500.0,0.00013597,2]
[384452383,1757423432693,-500.0,0.00013597,2]
[384452385,1757423432702,-500.0,0.00013597,2]
[384452387,1757423432711,-500.0,0.00013597,2]
[384452389,1757423432721,-244.81436349,0.00013597,2]
[384452391,1757423432730,-500.0,0.00013597,2]
[384452393,1757423432739,-500.0,0.00013597,2]
[384452395,1757423432749,-500.0,0.00013597,2]
[384452397,1757423432759,-500.0,0.00013597,2]
[384452399,1757423432768,-500.0,0.00013597,2]
[384452401,1757423432779,-1490.2447175,0.00013598,2]
[384452403,1757423432789,-2775.71241428,0.00013598,2]
[384452405,1757423432798,-31381.91609582,0.00013598,2]
[384452408,1757423432811,-446.55424473,0.00013598,2]
[384452567,1757423437889,-718.84191242,0.00013497,2]
[384452568,1757423437900,-37776.78584294,0.00013598,2]
[384452569,1757423437909,-662.08577514,0.00013599,2]
[384452570,1757423437917,-1200.0,0.000136,2]
[384452571,1757423437927,-189.52,0.00013645,2]
[384452572,1757423437936,-196.65487539,0.00013672,2]
[384452573,1757423437945,-263.13513426,0.00013673,2]
[384452574,1757423437954,-504.56323117,0.00013673,2]
[384452575,1757423437963,-194.70526234,0.00013673,2]
[384452576,1757423437971,-500.0,0.00013673,2]
[384452577,1757423437980,-500.0,0.00013673,2]
[384452578,1757423437989,-500.0,0.00013673,2]
[384452579,1757423437998,-500.0,0.00013673,2]
[384452580,1757423438007,-500.0,0.00013673,2]
[384452581,1757423438017,-507.0775955,0.00013673,2]
[384452582,1757423438176,-500.0,0.00013673,2]
[384452583,1757423438185,-298.29106406,0.00013673,2]
[384452584,1757423438195,-500.31533149,0.00013673,2]
[384452585,1757423438205,-568.06839333,0.00013673,2]
[384452586,1757423438214,-500.0,0.00013673,2]
[384452587,1757423438227,-590.45919396,0.00013673,2]
[384452588,1757423438237,-500.0,0.00013673,2]
[384452589,1757423438246,-500.0,0.00013673,2]
[384452590,1757423438256,-500.0,0.00013673,2]
[384452591,1757423438265,-500.0,0.00013673,2]
[384452592,1757423438274,-500.0,0.00013673,2]
[384452593,1757423438284,-500.94915532,0.00013673,2]
[384452594,1757423438294,-500.0,0.00013673,2]
[384452595,1757423438303,-500.0,0.00013673,2]
[384452596,1757423438313,-500.4457902,0.00013673,2]
[384452597,1757423438322,-151.0,0.0001369,2]
[384452598,1757423438332,-151.0,0.0001369,2]
[384452599,1757423438341,-250.0,0.0001369,2]
[384452600,1757423438351,-162.380719,0.0001369,2]
[384452601,1757423438360,-151.0,0.0001369,2]
[384452602,1757423438369,-151.0,0.0001369,2]
[384452603,1757423438379,-151.0,0.0001369,2]
[384452604,1757423438388,-250.0,0.0001369,2]
[384452605,1757423438398,-151.0,0.0001369,2]
[384452606,1757423438407,-151.0,0.0001369,2]
[384452607,1757423438417,-151.0,0.0001369,2]
[384452608,1757423438426,-250.0,0.0001369,2]
[384452609,1757423438436,-152.24547723,0.0001369,2]
[384452610,1757423438445,-151.0,0.0001369,2]
[384452611,1757423438454,-250.0,0.0001369,2]
[384452612,1757423438464,-151.0,0.0001369,2]
[384452613,1757423438473,-250.0,0.0001369,2]
[384452614,1757423438483,-151.0,0.0001369,2]
[384452615,1757423438493,-250.0,0.0001369,2]
[384452616,1757423438502,-151.0,0.0001369,2]
[384452617,1757423438513,-250.0,0.0001369,2]
[384452618,1757423438522,-151.0,0.0001369,2]
[384452619,1757423438531,-250.0,0.0001369,2]
[384452620,1757423438541,-151.0,0.0001369,2]
[384452621,1757423438551,-250.0,0.0001369,2]
[384452622,1757423438561,-151.0,0.0001369,2]
[384452623,1757423438570,-250.0,0.0001369,2]
[384452624,1757423438580,-151.0,0.0001369,2]
[384452625,1757423438591,-250.0,0.0001369,2]
[384452626,1757423438600,-151.0,0.0001369,2]
[384452627,1757423438610,-295.13648197,0.0001369,2]
[384452628,1757423438619,-151.0,0.0001369,2]
[384452629,1757423438628,-151.0,0.0001369,2]
[384452630,1757423438637,-151.0,0.0001369,2]
[384452631,1757423438648,-1000.0,0.0001369,2]
[384452632,1757423438658,-1000.0,0.0001369,2]
[384452633,1757423438667,-1000.0,0.0001369,2]
[384452634,1757423438677,-963.21993475,0.0001369,2]
[384452635,1757423438687,-160.0,0.00013697,2]
[384452636,1757423438696,-21264.00577363,0.00013698,2]
[384452637,1757423438871,-19910.57012517,0.00013698,2]
[384452638,1757423438881,-480.0,0.00013698,2]
[384452639,1757423438890,-481.94988044,0.00013698,2]
[384452640,1757423438899,-480.0,0.00013698,2]
[384452641,1757423438909,-482.06897968,0.00013698,2]
[384452642,1757423438919,-480.0,0.00013698,2]
[384452643,1757423438928,-480.0,0.00013698,2]
[384452644,1757423438938,-481.13114138,0.00013698,2]
[384452645,1757423438948,-480.0,0.00013698,2]
[384452646,1757423438958,-481.02348525,0.00013698,2]
[384452647,1757423438967,-480.0,0.00013698,2]
[384452648,1757423438977,-168.30577417,0.00013698,2]
[384452649,1757423438987,-480.0,0.00013698,2]
[384452650,1757423438996,-157.0,0.00013698,2]
[384452651,1757423439005,-500.0,0.00013698,2]
[384452652,1757423439014,-157.0,0.00013698,2]
[384452653,1757423439024,-480.0,0.00013698,2]
[384452654,1757423439033,-480.0,0.00013698,2]
[384452655,1757423439044,-480.0,0.00013698,2]
[384452656,1757423439054,-480.0,0.00013698,2]
[384452657,1757423439063,-8260.25234834,0.00013698,2]
[384452658,1757423439076,-3277.68090886,0.00013698,2]
[384452659,1757423439086,-236.07,0.00013698,2]
[384452660,1757423439096,-480.0,0.00013698,2]
[384452661,1757423439106,-281.880652,0.00013698,2]
[384452662,1757423439115,-480.0,0.00013698,2]
[384452663,1757423439124,-201.3412741,0.00013698,2]
[384452664,1757423439134,-480.0,0.00013698,2]
[384452665,1757423439144,-483.15412256,0.00013698,2]
[384452666,1757423439153,-480.0,0.00013698,2]
[384452667,1757423439163,-480.0,0.00013698,2]
[384452668,1757423439172,-480.0,0.00013698,2]
[384452669,1757423439181,-483.24849934,0.00013698,2]
[384452670,1757423439191,-480.0,0.00013698,2]
[384452671,1757423439200,-480.0,0.00013698,2]
[384452672,1757423439209,-32.62454314,0.00013698,2]
[384452678,1757423439992,-447.37545686,0.00013698,2]
[384452679,1757423440001,-480.0,0.00013698,2]
[384452680,1757423440010,-480.0,0.00013698,2]
[384452681,1757423440020,-480.0,0.00013698,2]
[384452682,1757423440029,-480.0,0.00013698,2]
[384452683,1757423440039,-483.44738823,0.00013698,2]
[384452684,1757423440048,-151.0,0.00013698,2]
[384452685,1757423440058,-151.0,0.00013698,2]
[384452686,1757423440067,-151.0,0.00013698,2]
[384452687,1757423440076,-151.0,0.00013698,2]
[384452688,1757423440094,-480.0,0.00013698,2]
[384452689,1757423440103,-480.0,0.00013698,2]
[384452690,1757423440112,-480.0,0.00013698,2]
[384452691,1757423440121,-480.0,0.00013698,2]
[384452692,1757423440130,-480.72462997,0.00013698,2]
[384452693,1757423440139,-480.0,0.00013698,2]
[384452694,1757423440149,-480.0,0.00013698,2]
[384452695,1757423440157,-593.68092878,0.00013698,2]
[384452696,1757423440167,-481.38516802,0.00013698,2]
[384452697,1757423440176,-500.0,0.00013698,2]
[384452698,1757423440187,-480.0,0.00013698,2]
[384452699,1757423440201,-480.0,0.00013698,2]
[384452700,1757423440211,-480.0,0.00013698,2]
[384452701,1757423440220,-480.0,0.00013698,2]
[384452702,1757423440233,-480.0,0.00013698,2]
[384452703,1757423440242,-480.0,0.00013698,2]
[384452704,1757423440252,-480.0,0.00013698,2]
[384452705,1757423440262,-480.0,0.00013698,2]
[384452706,1757423440271,-480.0,0.00013698,2]
[384452707,1757423440280,-480.0,0.00013698,2]
[384452708,1757423440291,-480.0,0.00013698,2]
[384452709,1757423440300,-363.97690342,0.00013698,2]
[384452710,1757423440310,-480.0,0.00013698,2]
[384452711,1757423440320,-488.34625054,0.00013698,2]
[384452712,1757423440329,-480.0,0.00013698,2]
[384452713,1757423440339,-480.0,0.00013698,2]
[384452714,1757423440348,-480.0,0.00013698,2]
[384452715,1757423440358,-266.79076574,0.00013698,2]
[384452716,1757423440367,-480.0,0.00013698,2]
[384452717,1757423440376,-480.0,0.00013698,2]
[384452718,1757423440385,-480.0,0.00013698,2]
[384452719,1757423440394,-480.0,0.00013698,2]
[384452720,1757423440404,-482.66488377,0.00013698,2]
[384452721,1757423440413,-651.89,0.00013698,2]
[384452722,1757423440422,-480.0,0.00013698,2]
[384452723,1757423440431,-480.0,0.00013698,2]
[384452724,1757423440441,-482.02299581,0.00013698,2]
[384452725,1757423440450,-481.69628703,0.00013698,2]
[384452726,1757423440459,-482.45576023,0.00013698,2]
[384452727,1757423440468,-480.0,0.00013698,2]
[384452728,1757423440478,-482.476526,0.00013698,2]
[384452729,1757423440487,-480.0,0.00013698,2]
[384452730,1757423440496,-480.0,0.00013698,2]
[384452731,1757423440505,-480.0,0.00013698,2]
[384452732,1757423440514,-480.0,0.00013698,2]
[384452733,1757423440523,-480.0,0.00013698,2]
[384452734,1757423440532,-480.0,0.00013698,2]
[384452735,1757423440543,-480.0,0.00013698,2]
[384452736,1757423440552,-480.0,0.00013698,2]
[384452737,1757423440561,-356.8862492,0.00013698,2]
[384452738,1757423440571,-480.0,0.00013698,2]
[384452739,1757423440580,-480.0,0.00013698,2]
[384452740,1757423440589,-481.64556267,0.00013698,2]
[384452741,1757423440598,-480.0,0.00013698,2]
[384452742,1757423440607,-480.0,0.00013698,2]
[384452743,1757423440617,-480.0,0.00013698,2]
[384452744,1757423440627,-480.0,0.00013698,2]
[384452745,1757423440636,-480.0,0.00013698,2]
[384452746,1757423440645,-480.0,0.00013698,2]
[384452747,1757423440654,-499.6382672,0.00013698,2]
[384452748,1757423440664,-480.0,0.00013698,2]
[384452749,1757423440673,-480.0,0.00013698,2]
[384452750,1757423440683,-480.0,0.00013698,2]
[384452751,1757423440692,-519.3,0.00013698,2]
[384452752,1757423440702,-559.3473552,0.00013698,2]
[384452753,1757423440712,-480.0,0.00013698,2]
[384452754,1757423440722,-480.0,0.00013698,2]
[384452755,1757423440731,-480.0,0.00013698,2]
[384452756,1757423440740,-480.0,0.00013698,2]
[384452757,1757423440750,-480.0,0.00013698,2]
[384452758,1757423440760,-292.17509038,0.00013698,2]
[384452759,1757423440770,-525.74,0.00013698,2]
[384452760,1757423440778,-525.74,0.00013698,2]
[384452761,1757423440788,-525.74,0.00013698,2]
[384452762,1757423440797,-480.0,0.00013698,2]